bitfinex-derivatives/quotes_ETHF0:USTF0_20250426
["timestamp","ask_amount","ask_price","bid_price","bid_amount"]
[1745660886814,3.05616,1798.7,1798.5,5.03003]
[1745660887519,1.1115,1798.6,1798.5,3.9185]
[1745660887717,1.9936,1798.6,1798.5,5.03007]
[1745660888320,3.2078,1798.8,1798.5,3.9185]
[1745660888510,3.2078,1798.8,1798.7,1.11144]
[1745660889209,4.31918,1798.8,1798.7,1.9839]
[1745660889610,3.2078,1798.8,1798.7,3.09534]
[1745660889806,4.31918,1798.8,1798.7,1.9839]
[1745660890010,6.13548,1798.8,1798.7,1.9839]
[1745660890619,2.92768,1798.8,1798.7,1.9839]
[1745660891013,1.1115,1798.6,1798.5,1.9468]
[1745660892119,1.11163,1798.4,1798.3,6.0315]
[1745660892315,1.11163,1798.4,1798.3,4.183]
[1745660894921,1.11169,1798.3,1798.2,5.0968]
[1745660895720,1.11167,1798.4,1798.2,6.20855]
[1745660896024,1.8897,1798.3,1798.2,6.20855]
[1745660896524,1.11159,1798.5,1798.3,1.11166]
[1745660896918,3.00129,1798.5,1798.3,1.11166]
[1745660897223,1.11163,1798.4,1798.3,1.11166]
[1745660897529,3.2078,1798.6,1798.2,5.0968]
[1745660897823,3.2078,1798.6,1798.5,1.11157]
[1745660899029,4.3193,1798.6,1798.5,1.11157]
[1745660899527,3.2078,1798.6,1798.5,1.11157]
[1745660900126,4.3193,1798.6,1798.5,1.11157]
[1745660900326,3.2078,1798.6,1798.5,1.11157]
[1745660900716,7.3908,1798.8,1798.7,1.11144]
[1745660900919,8.50222,1798.8,1798.6,1.11147]
[1745660901125,4.31922,1798.8,1798.7,1.9112]
[1745660902222,3.2078,1798.8,1798.5,3.05882]
[1745660902429,1.1115,1798.6,1798.5,3.8156]
[1745660902928,4.31921,1798.8,1798.6,1.11144]
[1745660903129,1.8463,1798.9,1798.8,1.11138]
[1745660903522,2.95762,1798.9,1798.8,1.11138]
[1745660903828,1.8463,1798.9,1798.8,1.11138]
[1745660904125,3.2078,1799.0,1798.9,1.11132]
[1745660904831,5.1427,1799.0,1798.9,1.11132]
[1745660905530,6.25396,1799.0,1798.9,1.9844]
[1745660906430,1.11132,1798.9,1798.8,1.9003]
[1745660906624,3.04622,1798.9,1798.6,1.11148]
[1745660906829,1.9349,1798.9,1798.8,1.11138]
[1745660907032,3.04622,1798.9,1798.8,1.11138]
[1745660907837,1.9349,1798.9,1798.8,1.11138]
[1745660908033,3.2078,1799.0,1798.6,1.9844]
[1745660908238,4.31908,1799.0,1798.8,1.11135]
[1745660908630,3.05222,1798.9,1798.8,1.11135]
[1745660909435,3.05222,1798.9,1798.7,1.11141]
[1745660909636,1.9409,1798.9,1798.8,1.11138]
[1745660909943,3.05222,1798.9,1798.8,1.11138]
[1745660910439,3.05226,1798.9,1798.7,1.11141]
[1745660910636,1.9409,1798.9,1798.6,1.9844]
[1745660910831,3.05225,1798.9,1798.7,1.1114]
[1745660911432,1.11141,1798.8,1798.6,3.09586]
[1745660911632,2.92331,1798.8,1798.7,1.8511]
[1745660911843,2.92331,1798.8,1798.6,1.11146]
[1745660912044,1.8119,1798.7,1798.6,2.96256]
[1745660912844,2.92334,1798.7,1798.6,1.8511]
[1745660913033,1.1115,1798.6,1798.5,1.9473]
[1745660913238,5.0197,1798.6,1798.4,6.0783]
[1745660913545,1.11167,1798.4,1798.2,6.29764]
[1745660913750,1.9957,1798.3,1798.2,8.18944]
[1745660914942,5.2035,1798.3,1798.0,1.947]
[1745660915147,6.31522,1798.3,1798.1,1.8918]
[1745660915349,1.9957,1798.2,1798.1,1.8918]
[1745660915648,1.9957,1798.2,1798.1,3.00361]
[1745660916250,3.2078,1798.3,1798.2,1.11171]
[1745660916550,3.2078,1798.5,1798.4,1.11163]
[1745660917139,3.2078,1798.5,1798.4,4.87393]
[1745660918154,6.19695,1798.9,1798.4,3.7623]
[1745660918353,1.928,1798.9,1798.5,1.9446]
[1745660918553,1.928,1798.9,1798.8,1.11138]
[1745660918954,4.31904,1799.1,1798.9,1.11128]
[1745660919156,5.1358,1799.1,1798.6,3.2078]
[1745660919456,4.92779,1799.0,1798.8,1.11138]
[1745660919654,1.928,1798.9,1798.8,1.11138]
[1745660921056,3.2078,1799.1,1798.8,1.9146]
[1745660921358,6.2161,1799.1,1798.9,2.92016]
[1745660921950,1.8971,1799.0,1798.9,2.92016]
[1745660922551,1.8971,1799.0,1798.8,3.8408]
[1745660922952,3.0084,1799.0,1798.8,4.95218]
[1745660923256,1.11132,1798.9,1798.8,3.8408]
[1745660923444,1.11138,1798.8,1798.7,1.8089]
[1745660923648,1.11138,1798.8,1798.6,5.28947]
[1745660923854,2.94194,1798.7,1798.3,7.9358]
[1745660924055,1.8305,1798.6,1798.5,1.11156]
[1745660925452,6.16252,1798.9,1798.4,7.83598]
[1745660925758,1.8305,1798.8,1798.7,1.1114]
[1745660928754,2.94188,1798.8,1798.6,2.98156]
[1745660929854,1.11144,1798.7,1798.6,1.8701]
[1745660930057,3.03734,1798.7,1798.6,1.8701]
[1745660930258,1.1115,1798.6,1798.5,1.8829]
[1745660930461,3.0374,1798.6,1798.4,1.1116]
[1745660930854,1.9259,1798.5,1798.4,3.0626]
[1745660931465,1.9259,1798.5,1798.4,1.951]
[1745660931761,3.03747,1798.5,1798.4,1.951]
[1745660931959,3.03747,1798.5,1798.4,3.06263]
[1745660932161,1.9259,1798.5,1798.4,3.06263]
[1745660935462,3.03747,1798.5,1798.4,1.951]
[1745660935664,1.9259,1798.5,1798.4,3.06263]
[1745660936165,4.31925,1798.7,1798.5,1.11151]
[1745660936464,6.22685,1798.7,1798.5,4.86571]
[1745660936654,1.1115,1798.6,1798.5,4.86571]
[1745660936856,1.1115,1798.6,1798.5,2.94781]
[1745660937052,6.22686,1798.7,1798.5,2.94781]
[1745660937255,1.9076,1798.7,1798.6,1.1115]
[1745660941065,6.16256,1798.9,1798.8,1.11138]
[1745660941463,6.16256,1798.9,1798.7,1.1114]
[1745660941766,1.11138,1798.8,1798.6,1.11146]
[1745660941964,3.11258,1798.8,1798.6,1.11146]
[1745660943265,2.0012,1798.8,1798.7,1.11144]
[1745660945768,1.11145,1798.7,1798.5,1.8363]
[1745660946068,2.0028,1798.6,1798.5,2.94784]
[1745660948358,5.0512,1798.9,1798.7,1.11141]
[1745660948558,1.9267,1798.8,1798.7,1.11141]
[1745660949665,3.03808,1798.8,1798.7,1.11141]
[1745660949870,1.9267,1798.8,1798.7,1.11141]
[1745660950169,3.03808,1798.8,1798.7,1.11141]
[1745660950562,1.9267,1798.8,1798.5,1.8363]
[1745660950767,9.81791,1798.7,1798.2,1.11171]
[1745660950967,3.2078,1798.5,1798.2,1.11174]
[1745660951263,3.2078,1798.5,1798.1,1.11181]
[1745660951264,4.0062,1798.4,1798.1,1.11181]
[1745660951569,1.9992,1798.3,1798.1,1.11181]
[1745660951869,1.9992,1798.3,1798.0,7.3798]
[1745660952163,3.8315,1798.3,1798.0,7.3798]
[1745660952368,4.9432,1798.3,1798.1,1.11178]
[1745660952569,1.9992,1798.2,1798.0,7.3798]
[1745660952757,3.11099,1798.2,1798.0,4.31967]
[1745660952956,1.9992,1798.2,1798.1,1.11181]
[1745660953161,2.007,1798.4,1798.2,1.11169]
[1745660953459,3.11863,1798.4,1798.2,1.11169]
[1745660953769,2.007,1798.4,1798.3,1.11169]
[1745660953963,2.007,1798.4,1798.2,1.11172]
[1745660954160,5.2148,1798.4,1798.2,1.11172]
[1745660954362,2.007,1798.4,1798.0,3.2078]
[1745660954568,3.11864,1798.4,1798.2,1.11171]
[1745660954961,1.1117,1798.3,1798.1,3.12646]
[1745660955267,1.11175,1798.2,1798.0,4.31963]
[1745660956559,1.11175,1798.2,1798.0,6.33663]
[1745660956763,1.11187,1798.0,1797.9,3.8107]
[1745660956972,3.2078,1798.2,1797.9,3.8107]
[1745660957168,3.2078,1798.2,1797.9,5.8277]
[1745660957370,3.2078,1798.0,1797.7,4.172]
[1745660957672,4.31973,1798.0,1797.7,6.189]
[1745660957869,4.31973,1798.0,1797.8,3.12896]
[1745660958568,3.2078,1798.2,1797.8,2.017]
[1745660958767,3.2078,1798.2,1798.1,1.11181]
[1745660958958,5.2148,1798.4,1797.9,8.511]
[1745660959167,1.1117,1798.3,1798.1,1.11177]
[1745660959470,1.11153,1798.6,1798.4,1.11158]
[1745660959773,8.13394,1798.7,1798.5,1.11153]
[1745660960769,8.13394,1798.7,1798.4,1.8302]
[1745660961074,6.15357,1798.7,1798.5,1.11155]
[1745660961370,6.15355,1798.7,1798.5,1.11153]
[1745660961967,3.2078,1798.7,1798.4,1.8302]
[1745660962179,1.11128,1799.0,1798.8,1.11135]
[1745660962367,5.0924,1799.1,1798.9,1.11128]
[1745660962568,5.0924,1799.1,1799.0,1.11126]
[1745660962874,3.2078,1799.1,1799.0,1.11126]
[1745660963270,3.8477,1799.4,1799.1,1.11114]
[1745660963465,3.2078,1799.3,1798.9,7.3798]
[1745660963667,18.37162382,1799.5,1799.4,1.11101]
[1745660964070,12.85312381,1799.5,1799.4,6.54723035]
[1745660964273,12.85312381,1799.5,1799.4,8.58793035]
[1745660964274,11.62815381,1799.5,1799.4,8.58793035]
[1745660964466,6.09765381,1799.5,1799.4,8.15171]
[1745660965073,6.09765381,1799.5,1799.4,48.95171]
[1745660965478,4.76198381,1799.5,1799.4,48.95171]
[1745660965679,20.2087862,1800.2,1799.9,1.11067]
[1745660965884,5.2323,1800.3,1799.4,48.28293413]
[1745660965885,2.0245,1800.1,1800.0,1.11064]
[1745660966085,1.9254,1800.6,1799.9,7.98276]
[1745660966275,1.9254,1800.6,1800.3,1.11041]
[1745660966476,5.06017,1800.6,1800.4,1.9983]
[1745660966676,3.2078,1800.7,1800.4,1.9983]
[1745660966982,1.11028,1800.6,1800.4,1.9983]
[1745660967182,2.0245,1800.5,1800.4,1.11039]
[1745660967376,2.0245,1800.5,1800.3,1.9983]
[1745660967680,3.2078,1800.7,1800.5,1.1103]
[1745660967880,5.2323,1800.9,1800.6,1.11027]
[1745660968179,5.2323,1800.9,1800.7,1.11017]
[1745660968374,2.0245,1800.9,1800.3,4.0435]
[1745660968575,1.11029,1800.6,1800.3,5.15393]
[1745660968781,1.8904,1800.5,1800.3,5.15391]
[1745660968975,3.2078,1800.7,1800.6,1.11027]
[1745660969175,3.2078,1800.7,1800.5,1.11029]
[1745660969376,1.8904,1800.6,1800.5,1.11033]
[1745660969977,3.0007,1800.6,1800.4,2.0427]
[1745660970183,5.1433,1801.0,1800.4,2.0427]
[1745660970481,4.31798,1800.8,1800.5,1.11031]
[1745660970681,1.8904,1800.7,1800.5,1.11031]
[1745660970882,4.31812,1800.6,1800.3,3.15564]
[1745660971084,1.8904,1800.5,1800.3,3.15564]
[1745660971384,3.2078,1800.8,1800.3,2.0452]
[1745660971586,3.2078,1800.8,1800.6,1.11024]
[1745660971789,1.9442,1800.7,1800.6,1.11024]
[1745660972585,3.02522,1801.2,1800.6,3.2078]
[1745660972780,5.152,1801.1,1800.7,1.9309]
[1745660972981,6.26196,1801.1,1800.9,1.11006]
[1745660973487,5.152,1801.1,1800.9,1.11006]
[1745660973682,5.152,1801.1,1801.0,1.11002]
[1745660975289,1.9442,1801.1,1801.0,1.11002]
[1745660975887,3.2078,1801.4,1800.9,1.9309]
[1745660976086,2.033,1801.3,1801.0,1.11]
[1745660976488,1.11011,1800.9,1800.7,3.2078]
[1745660976690,2.033,1800.8,1800.7,1.11018]
[1745660976988,3.2078,1801.0,1800.9,1.11008]
[1745660977191,2.033,1801.1,1801.0,1.11002]
[1745660977388,5.2408,1801.1,1800.9,1.11006]
[1745660977691,5.2408,1801.1,1800.8,1.9648]
[1745660977892,6.35077,1801.1,1800.9,1.11005]
[1745660978085,6.35077,1801.1,1800.9,41.91005]
[1745660978285,5.2408,1801.1,1801.0,1.11002]
[1745660978787,3.2078,1801.1,1800.8,1.9648]
[1745660978983,4.31767,1801.3,1801.1,1.1099]
[1745660979290,3.2078,1801.3,1801.2,1.1099]
[1745660979698,3.2078,1801.3,1800.9,4.161]
[1745660979986,3.2078,1801.3,1801.2,1.1099]
[1745660980191,3.2078,1801.3,1800.9,4.161]
[1745660980390,3.2078,1801.3,1801.2,1.1099]
[1745660980692,4.31767,1801.3,1801.1,1.10994]
[1745660981095,3.2078,1801.3,1801.2,1.1099]
[1745660981984,4.31764,1801.3,1801.1,1.10992]
[1745660982196,1.9936,1801.2,1801.1,1.10992]
[1745660983293,1.99700505,1801.2,1801.1,1.10992]
[1745660990095,3.10693505,1801.2,1801.0,1.10997]
[1745660990296,5.08493505,1801.2,1801.0,1.10997]
[1745660990497,1.11002,1801.0,1800.9,4.161]
[1745660990805,1.1101,1800.9,1800.7,41.91016]
[1745660991302,3.8752,1801.0,1800.7,41.91016]
[1745660991303,2.0007,1800.8,1800.7,41.91016]
[1745660991800,2.0007,1800.8,1800.7,43.93126]
[1745660992205,2.0007,1800.8,1800.7,3.13126]
[1745660993009,1.8745,1801.0,1800.9,1.11008]
[1745660993209,3.8713,1801.0,1800.9,1.11008]
[1745660995001,3.8713,1801.0,1800.7,2.0211]
[1745660995002,3.2078,1801.1,1801.0,1.11002]
[1745660995198,5.2046,1801.1,1801.0,1.11002]
[1745660995911,1.9968,1801.1,1800.9,3.14935]
[1745660996118,3.1068,1801.1,1800.9,3.14935]
[1745660997216,1.11008,1801.0,1800.8,3.0301]
[1745660997518,3.9606,1800.9,1800.8,3.0301]
[1745660997718,3.9606,1800.9,1800.8,1.1101]
[1745660999117,3.09132505,1801.2,1801.0,1.11002]
[1745660999314,1.10996,1801.1,1801.0,1.11002]
[1745660999519,2.0181,1801.1,1801.0,1.11002]
[1745661001018,3.12806,1801.1,1800.9,1.11005]
[1745661001416,2.0181,1801.1,1800.9,1.11007]
[1745661001615,3.1281,1801.1,1800.9,1.11007]
[1745661001916,1.11002,1801.0,1800.9,1.11007]
[1745661002228,4.0426,1801.0,1800.8,1.11011]
[1745661002513,4.0426,1801.0,1800.9,1.11008]
[1745661003313,1.98140505,1801.2,1801.1,1.10996]
[1745661003522,1.99620505,1801.2,1801.1,1.10996]
[1745661004021,1.99620505,1801.2,1801.1,3.12136]
[1745661004223,0.00340505,1801.2,1801.1,3.12136]
[1745661004623,3.10610505,1801.2,1801.1,2.0114]
[1745661005011,3.10610505,1801.2,1801.0,3.11909]
[1745661005216,1.9564,1801.1,1801.0,3.11909]
[1745661008125,0.00340505,1801.2,1801.1,1.10996]
[1745661008322,0.00340505,1801.2,1801.1,3.04236]
[1745661009125,0.00340505,1801.2,1801.1,1.9324]
[1745661009328,1.10996,1801.1,1801.0,3.11909]
[1745661009629,1.98190505,1801.2,1801.0,5.05149]
[1745661009820,3.09183505,1801.2,1801.1,1.10996]
[1745661010020,3.09183505,1801.2,1801.1,1.9324]
[1745661010221,3.09183505,1801.2,1801.0,3.1191]
[1745661010421,1.9785,1801.1,1801.0,5.0515]
[1745661012422,1.11002,1801.0,1800.9,1.11005]
[1745661012626,1.11002,1801.0,1800.8,1.8716]
[1745661012627,3.18112,1801.0,1800.8,1.8716]
[1745661012926,1.9174,1800.9,1800.8,2.98175]
[1745661013823,1.9174,1800.9,1800.8,1.11015]
[1745661014924,1.9174,1800.9,1800.8,3.05295]
[1745661015428,1.9174,1800.9,1800.7,4.154]
[1745661015622,1.9174,1800.9,1800.6,1.9428]
[1745661015822,1.9174,1800.9,1800.8,1.11015]
[1745661016425,1.9174,1800.9,1800.6,1.9428]
[1745661016621,1.9174,1800.9,1800.4,6.1464]
[1745661016622,1.11027,1800.6,1800.4,6.1464]
[1745661016825,3.2078,1800.6,1800.2,7.40055283]
[1745661017121,1.11052,1800.2,1800.1,4.154]
[1745661017316,1.11047,1800.3,1800.1,5.26454]
[1745661017517,1.9369,1800.3,1800.1,4.154]
[1745661017722,1.9369,1800.3,1800.1,5.26454]
[1745661017923,3.04737,1800.3,1800.1,5.26454]
[1745661018231,1.11052,1800.2,1800.1,4.154]
[1745661018529,1.9369,1800.2,1800.1,4.154]
[1745661018830,1.9369,1800.2,1800.1,5.26458]
[1745661019031,1.9369,1800.2,1800.1,7.22568]
[1745661020130,4.31826,1800.3,1800.2,1.11052]
[1745661020131,3.2078,1800.3,1800.2,1.11052]
[1745661020321,3.2078,1800.3,1800.2,2.99702]
[1745661020518,2.77561,1800.7,1800.2,5.0943]
[1745661020519,4.31804,1800.7,1800.2,5.0943]
[1745661020725,5.1857,1800.7,1800.6,1.11027]
[1745661021024,3.2078,1800.7,1800.6,1.11027]
[1745661021630,1.11029,1800.6,1800.4,2.99687]
[1745661021928,3.08819,1800.6,1800.4,2.99687]
[1745661022426,1.9779,1800.5,1800.4,2.99687]
[1745661022627,4.31804,1800.7,1800.5,1.11029]
[1745661022826,3.2078,1800.7,1800.6,1.11027]
[1745661023026,4.31801,1800.7,1800.5,1.11029]
[1745661023232,4.31801,1800.7,1800.3,2.0608]
[1745661023233,5.1869,1800.7,1800.3,2.0608]
[1745661023529,5.1869,1800.7,1800.6,1.11027]
[1745661025933,1.11029,1800.6,1800.4,1.11033]
[1745661026126,3.12389,1800.6,1800.4,1.11033]
[1745661026527,1.11039,1800.4,1800.3,2.0608]
[1745661027032,1.11045,1800.3,1800.2,3.2078]
[1745661027335,1.11052,1800.2,1800.1,4.154]
[1745661027521,8.227,1800.3,1800.1,5.26458]
[1745661027722,2.0136,1800.2,1800.1,5.26458]
[1745661028427,3.12412,1800.2,1800.1,4.154]
[1745661028634,2.0136,1800.2,1800.1,5.26458]
[1745661029128,3.12412,1800.2,1800.1,4.154]
[1745661029323,2.0136,1800.2,1800.1,1.11058]
[1745661032332,1.11058,1800.1,1799.9,43.79556]
[1745661032526,3.12414,1800.2,1800.0,1.11061]
[1745661032934,1.9952,1800.1,1800.0,1.11061]
[1745661034627,6.21336,1800.3,1799.9,42.6849]
[1745661034826,8.20856,1800.3,1800.1,1.11056]
[1745661035437,7.0981,1800.3,1800.2,1.11052]
[1745661035624,3.2078,1800.5,1800.4,1.11034]
[1745661036637,3.2078,1800.5,1800.4,3.08484]
[1745661038533,3.2078,1800.7,1800.6,1.11027]
[1745661038934,7.04853,1800.9,1800.7,1.11019]
[1745661039235,2.0467,1800.8,1800.7,1.11019]
[1745661040939,3.15685,1800.8,1800.6,3.16143]
[1745661041235,3.15685,1800.8,1800.6,3.16142]
[1745661041539,3.06002,1800.7,1800.5,1.11027]
[1745661041837,1.9498,1800.6,1800.5,1.11027]
[1745661042034,3.0601,1800.6,1800.4,3.04636]
[1745661042335,1.9498,1800.6,1800.5,1.11033]
[1745661042539,1.9498,1800.6,1800.5,3.04633]
[1745661045530,5.1532,1800.9,1800.5,1.936]
[1745661045735,1.9305,1800.8,1800.6,1.875]
[1745661046040,1.11021,1800.7,1800.6,1.875]
[1745661046439,4.31801,1800.7,1800.6,1.875]
[1745661047542,1.11028,1800.6,1800.3,5.2164]
[1745661047731,2.98528,1800.6,1800.4,3.06576]
[1745661047936,1.11033,1800.5,1800.4,3.06579]
[1745661048136,2.98533,1800.5,1800.4,3.06579]
[1745661048336,1.875,1800.5,1800.4,3.06579]
[1745661048838,1.875,1800.5,1800.3,5.2164]
[1745661049048,1.11039,1800.4,1800.3,3.11903]
[1745661049241,2.98537,1800.5,1800.3,3.11903]
[1745661049542,1.875,1800.5,1800.4,1.11039]
[1745661049740,2.98533,1800.5,1800.4,1.11039]
[1745661050039,5.0828,1800.5,1800.3,3.964]
[1745661050245,1.875,1800.4,1800.3,5.07442]
[1745661050451,2.98539,1800.4,1800.3,5.07445]
[1745661050746,1.11045,1800.3,1800.2,4.149]
[1745661050936,3.18035,1800.3,1800.2,4.149]
[1745661051137,2.0699,1800.3,1800.1,1.11054]
[1745661051336,2.0699,1800.2,1800.1,1.11054]
[1745661051643,2.0699,1800.2,1800.1,2.99484]
[1745661054245,3.10251,1800.4,1800.2,1.11047]
[1745661054545,2.0549,1800.3,1800.2,3.08767]
[1745661055446,4.31815,1800.5,1800.2,1.9772]
[1745661055646,2.0549,1800.5,1800.4,1.11039]
[1745661056240,2.0549,1800.5,1800.4,3.08759]
[1745661057750,6.30855,1800.7,1800.5,1.11031]
[1745661058047,2.0586,1800.6,1800.5,3.04791]
[1745661058437,4.31804,1800.7,1800.5,3.0479]
[1745661058641,6.37664,1800.7,1800.5,3.0479]
[1745661058942,2.0586,1800.6,1800.5,3.0479]
[1745661059141,3.2078,1800.7,1800.6,1.11027]
[1745661059340,3.2078,1800.7,1800.6,3.04787]
[1745661059851,6.34411,1800.7,1800.6,1.9376]
[1745661060044,1.11029,1800.6,1800.4,3.02097]
[1745661060344,1.11029,1800.6,1800.2,3.2078]
[1745661060345,1.11039,1800.4,1800.2,3.2078]
[1745661060552,2.0261,1800.3,1800.2,4.31832]
[1745661061152,4.31817,1800.5,1800.3,1.11044]
[1745661061353,2.0261,1800.4,1800.3,1.11044]
[1745661061850,2.0261,1800.4,1800.2,5.1184]
[1745661062047,3.9544,1800.4,1800.2,3.2078]
[1745661062345,5.06481,1800.4,1800.3,1.11045]
[1745661062652,3.9544,1800.4,1800.3,1.11045]
[1745661062845,3.9544,1800.4,1800.3,3.01365]
[1745661065647,5.06479,1800.4,1800.3,1.9032]
[1745661065851,3.9544,1800.4,1800.3,3.01365]
[1745661070246,3.2078,1800.7,1800.6,1.11027]
[1745661070860,5.2813,1800.7,1800.6,1.11027]
[1745661071158,2.0735,1800.7,1800.6,1.11027]
[1745661072361,1.11027,1800.6,1800.4,2.98018]
[1745661072662,3.9189,1800.5,1800.4,2.98018]
[1745661072860,5.02923,1800.5,1800.3,3.01671]
[1745661073061,3.15183,1800.5,1800.4,1.11039]
[1745661073362,2.0415,1800.5,1800.4,1.11039]
[1745661074556,4.31804,1800.7,1800.6,1.11027]
[1745661074859,3.2078,1800.7,1800.6,1.11027]
[1745661075365,3.15169,1800.8,1800.6,1.11027]
[1745661075562,3.15169,1800.8,1800.7,1.11021]
[1745661075563,2.0415,1800.8,1800.7,1.11021]
[1745661075760,2.0415,1800.8,1800.3,4.6824]
[1745661075965,2.0415,1800.8,1800.7,1.11021]
[1745661076761,3.15165,1800.8,1800.7,3.14791]
[1745661077073,2.0415,1800.8,1800.7,3.14791]
[1745661082178,1.8776,1801.1,1801.0,1.11002]
[1745661082179,3.2078,1801.1,1801.0,1.11002]
[1745661083268,3.2078,1801.1,1801.0,3.10282]
[1745661085574,1.8909,1801.2,1801.1,1.10996]
[1745661085764,1.8909,1801.2,1801.1,2.98486]
[1745661086774,3.9386,1801.2,1801.1,2.98486]
[1745661087177,1.8909,1801.2,1801.1,2.98486]
[1745661087773,1.8909,1801.2,1801.1,43.78486]
[1745661088273,1.8909,1801.2,1801.1,2.98486]
[1745661088475,2.0033,1801.3,1801.2,1.1099]
[1745661088676,2.0033,1801.3,1801.2,4.9208]
[1745661093684,5.2341,1801.4,1801.3,1.10984]
[1745661093685,2.0263,1801.4,1801.3,1.10984]
[1745661093976,4.063,1801.4,1801.3,1.10984]
[1745661094382,4.063,1801.4,1801.2,4.92075]
[1745661094383,5.17279,1801.4,1801.2,4.92075]
[1745661094578,2.0263,1801.4,1801.3,1.10984]
[1745661094782,3.13608,1801.4,1801.3,1.10984]
[1745661095084,3.2078,1801.6,1801.2,3.8109]
[1745661095278,3.2078,1801.6,1801.5,1.10971]
[1745661095679,8.2078,1801.6,1801.2,1.8944]
[1745661095883,3.2078,1801.4,1801.0,40.8]
[1745661096085,3.13656,1801.3,1801.1,1.10992]
[1745661097083,2.0267,1801.3,1801.0,2.0086]
[1745661097280,3.13654,1801.3,1801.1,1.10996]
[1745661097483,3.13654,1801.3,1801.2,1.1099]
[1745661097782,3.13654,1801.3,1801.1,1.10992]
[1745661098084,1.1099,1801.2,1801.0,3.11858]
[1745661098285,2.0267,1801.3,1801.0,2.0086]
[1745661098485,1.1099,1801.2,1801.1,1.10996]
[1745661098684,4.3177,1801.2,1801.0,3.11856]
[1745661098883,6.255,1801.2,1801.0,3.11856]
[1745661099078,5.1451,1801.2,1800.8,3.2078]
[1745661099280,3.2078,1801.0,1800.3,3.2078]
[1745661099486,3.2078,1800.6,1800.4,1.11037]
[1745661099682,2.0332,1800.5,1800.1,7.3408]
[1745661099875,1.11046,1800.3,1800.0,3.1661]
[1745661100077,4.31823,1800.4,1800.1,1.11058]
[1745661100474,3.2078,1800.4,1800.3,1.11045]
[1745661100675,3.2078,1800.4,1800.2,1.11048]
[1745661100983,3.2078,1800.4,1800.3,2.0555]
[1745661101782,3.2078,1800.4,1799.9,1.9474]
[1745661101988,1.11056,1800.2,1799.9,1.11068]
[1745661102179,2.0332,1800.1,1799.9,3.16618]
[1745661102985,2.0332,1800.1,1800.0,1.11064]
[1745661104381,2.0332,1800.1,1799.9,3.16615]
[1745661104778,2.0332,1800.1,1800.0,1.11064]
[1745661104979,2.0332,1800.1,1800.0,3.08864]
[1745661105187,2.0696,1800.2,1800.1,1.11058]
[1745661105687,5.1461,1800.4,1800.2,1.1105]
[1745661105888,1.9123,1800.3,1800.2,1.1105]
[1745661108086,3.02278,1800.3,1800.1,1.11054]
[1745661108991,1.9123,1800.3,1800.2,1.11052]
[1745661109194,4.31822,1800.4,1800.2,1.11052]
[1745661109490,3.2078,1800.4,1800.2,1.11052]
[1745661110082,4.3182,1800.4,1800.2,1.11052]
[1745661110586,1.11045,1800.3,1800.2,1.11052]
[1745661110788,4.31823,1800.4,1800.2,1.11052]
[1745661112085,4.31822,1800.4,1800.2,1.11052]
[1745661112281,1.11045,1800.3,1800.2,1.11052]
[1745661112486,4.31822,1800.4,1800.2,1.11052]
[1745661112692,3.2078,1800.4,1800.3,1.11045]
[1745661115692,4.31819,1800.4,1800.3,1.11045]
[1745661116094,3.2078,1800.4,1800.2,1.11047]
[1745661116291,3.2078,1800.4,1799.9,3.2078]
[1745661116593,2.0965,1800.3,1799.9,5.2046]
[1745661116780,1.11053,1800.2,1800.0,3.10738]
[1745661116983,1.11053,1800.2,1800.1,1.11058]
[1745661117793,1.11055,1800.2,1800.0,3.1074]
[1745661118986,1.11055,1800.2,1800.1,1.11058]
[1745661119192,1.11052,1800.2,1800.1,1.11058]
[1745661119494,1.11052,1800.2,1800.0,3.1074]
[1745661120093,3.2078,1800.2,1799.8,48.9617]
[1745661120394,1.11066,1800.0,1799.9,1.1107]
[1745661120592,1.11089,1799.6,1799.5,4.127]
[1745661120785,1.9474,1800.1,1799.5,1.9568]
[1745661120786,3.2078,1799.8,1799.5,1.9568]
[1745661120990,3.05824,1799.7,1799.5,1.9568]
[1745661121191,3.05824,1799.7,1799.5,3.0677]
[1745661121398,1.9474,1799.7,1799.6,1.11089]
[1745661121591,1.9474,1799.7,1799.6,3.06769]
[1745661122092,1.11082,1799.7,1799.6,1.9568]
[1745661122289,3.20682,1799.7,1799.6,1.9568]
[1745661122488,3.20682,1799.7,1799.5,1.11093]
[1745661122689,3.20682,1799.7,1799.5,3.06773]
[1745661123296,2.096,1799.7,1799.6,1.11089]
[1745661123499,2.096,1799.7,1799.6,3.06769]
[1745661125196,1.1109,1799.6,1799.4,3.20607]
[1745661125495,2.04,1799.6,1799.5,1.11095]
[1745661125694,2.04,1799.6,1799.5,3.08365]
[1745661126192,3.20687,1799.7,1799.5,3.08365]
[1745661126397,3.20687,1799.7,1799.6,1.9727]
[1745661126796,5.12617,1799.7,1799.6,1.9727]
[1745661127202,4.0153,1799.7,1799.6,1.9727]
[1745661127397,5.12624,1799.7,1799.6,1.9727]
[1745661128695,8.44669,1799.8,1799.6,1.9727]
[1745661128993,8.44668,1799.8,1799.6,3.08366]
[1745661129393,8.44668,1799.8,1799.7,1.9945]
[1745661129594,1.11098,1799.7,1799.5,1.11102]
[1745661129794,3.12738,1799.7,1799.5,3.18312]
[1745661130289,3.12738,1799.7,1799.6,2.0721]